fUSD/lending_fUSD_20260507
["ID","MTS","AMOUNT","RATE_DAILY","PERIOD"]
[421781847,1778148733000,-1000.0,0.00011999,2]
[421781851,1778148733000,-1240.7380725,0.00012,2]
[421781849,1778148733000,-1000.0,0.00011999,2]
[421781841,1778148733000,-154.02813597,0.000119,2]
[421781843,1778148733000,-2080.17592889,0.00011949,2]
[421781839,1778148733000,-9999.99,0.00011899,2]
[421781850,1778148733000,-150.0,0.00011999,2]
[421781866,1778148734000,-404.59,0.00012,2]
[421781864,1778148734000,-297.79373355,0.00012,2]
[421781869,1778148734000,-478.51655685,0.00012,2]
[421781865,1778148734000,-698.76000001,0.00012,2]
[421781868,1778148734000,-1366.86164079,0.00012,2]
[421781867,1778148734000,-556.05589644,0.00012,2]
[421781911,1778148735000,-151.0,0.00013699,2]
[421781908,1778148735000,-170.501289,0.00013699,2]
[421781907,1778148735000,-170.501289,0.00013699,2]
[421781904,1778148735000,-165.67,0.00013699,2]
[421781899,1778148735000,-500.0,0.00013698,2]
[421781902,1778148735000,-500.0,0.00013698,2]
[421781909,1778148735000,-170.501289,0.00013699,2]
[421781905,1778148735000,-200.0,0.00013699,2]
[421781903,1778148735000,-500.0,0.00013698,2]
[421781901,1778148735000,-500.0,0.00013698,2]
[421781906,1778148735000,-151.0,0.00013699,2]
[421781912,1778148735000,-151.0,0.00013699,2]
[421781923,1778148735000,-686.37,0.0001408,2]
[421781910,1778148735000,-170.501289,0.00013699,2]
[421781915,1778148735000,-168.63,0.00013799,2]
[421781914,1778148735000,-287.10257002,0.00013796,2]
[421781922,1778148735000,-250.0,0.00014,2]
[421781924,1778148735000,-281.59,0.00014507,2]
[421781920,1778148735000,-151.0,0.00013997,2]
[421781918,1778148735000,-287.10257002,0.0001393,2]
[421781916,1778148735000,-287.10257002,0.00013831,2]
[421781917,1778148735000,-287.10257002,0.0001393,2]
[421781919,1778148735000,-2000.0,0.00013981,2]
[421781921,1778148735000,-1181.55819315,0.00013999,5]
[421781900,1778148735000,-500.0,0.00013698,2]
[421781926,1778148735000,-13583.23282545,0.00014517,2]
[421781913,1778148735000,-287.10257002,0.00013796,2]
[421781893,1778148735000,-815.37,0.00013053,2]
[421781884,1778148735000,-2000.0,0.00012583,2]
[421781894,1778148735000,-815.37,0.00013364,2]
[421781937,1778148735000,-500.0,0.00014973,2]
[421781871,1778148735000,-326740.94023701,0.00012,2]
[421781870,1778148735000,-642467.5315102,0.00012,2]
[421781873,1778148735000,-785.129112,0.00012,2]
[421781874,1778148735000,-785.129112,0.00012,2]
[421781872,1778148735000,-785.129112,0.00012,2]
[421781875,1778148735000,-785.129112,0.00012,2]
[421781886,1778148735000,-815.37,0.00012742,2]
[421781876,1778148735000,-1832.15,0.00012089,2]
[421781877,1778148735000,-30063.41672713,0.00012101,2]
[421781878,1778148735000,-700.0,0.00012379,2]
[421781879,1778148735000,-1832.15,0.00012425,2]
[421781896,1778148735000,-644.17,0.00013671,2]
[421781880,1778148735000,-815.37,0.00012431,2]
[421781887,1778148735000,-1832.15,0.00012761,2]
[421781883,1778148735000,-686.37,0.00012515,2]
[421781882,1778148735000,-191.41535798,0.00012497,2]
[421781885,1778148735000,-165.96,0.00012663,2]
[421781897,1778148735000,-815.37,0.00013675,2]
[421781898,1778148735000,-500.0,0.00013698,2]
[421781889,1778148735000,-1062.0,0.00012945,2]
[421781890,1778148735000,-310.87748919,0.00012972,2]
[421781895,1778148735000,-225.4,0.000136,2]
[421781892,1778148735000,-5406.29503469,0.0001305,2]
[421781891,1778148735000,-5668.15398274,0.00013,2]
[421781888,1778148735000,-167.6,0.00012927,2]
[421781881,1778148735000,-302.94,0.00012495,2]
[421781936,1778148735000,-500.0,0.00014973,2]
[421781973,1778148735000,-785.129112,0.00015,2]
[421781929,1778148735000,-5000.0,0.000149,2]
[421781965,1778148735000,-170.501289,0.00015,2]
[421781958,1778148735000,-174.962686,0.00015,2]
[421781962,1778148735000,-170.501289,0.00015,2]
[421781961,1778148735000,-170.501289,0.00015,2]
[421781964,1778148735000,-170.501289,0.00015,2]
[421781963,1778148735000,-170.501289,0.00015,2]
[421781959,1778148735000,-174.962686,0.00015,2]
[421781968,1778148735000,-170.501289,0.00015,2]
[421781969,1778148735000,-785.129112,0.00015,2]
[421781978,1778148735000,-151.0,0.00015,2]
[421781980,1778148735000,-151.0,0.00015,2]
[421781979,1778148735000,-151.0,0.00015,2]
[421781960,1778148735000,-174.962686,0.00015,2]
[421781967,1778148735000,-170.501289,0.00015,2]
[421781975,1778148735000,-785.129112,0.00015,2]
[421781977,1778148735000,-151.0,0.00015,2]
[421781971,1778148735000,-785.129112,0.00015,2]
[421781972,1778148735000,-785.129112,0.00015,2]
[421781927,1778148735000,-234.0,0.00014742,2]
[421781974,1778148735000,-785.129112,0.00015,2]
[421781982,1778148735000,-168.84,0.00015041,2]
[421781984,1778148735000,-151.0,0.00015068,2]
[421781981,1778148735000,-2876.26496504,0.00015011,2]
[421781983,1778148735000,-167.6,0.0001506,2]
[421781985,1778148735000,-151.0,0.00015068,2]
[421781986,1778148735000,-2000.0,0.0001538,2]
[421781970,1778148735000,-785.129112,0.00015,2]
[421781957,1778148735000,-174.962686,0.00015,2]
[421781976,1778148735000,-785.129112,0.00015,2]
[421781966,1778148735000,-170.501289,0.00015,2]
[421781955,1778148735000,-174.962686,0.00015,2]
[421781928,1778148735000,-155.0,0.00014853,2]
[421781934,1778148735000,-466.10746956,0.00014973,2]
[421781930,1778148735000,-6400.0,0.000149,5]
[421781931,1778148735000,-4600.0,0.000149,5]
[421781933,1778148735000,-500.0,0.00014973,2]
[421781935,1778148735000,-500.0,0.00014973,2]
[421781932,1778148735000,-883.32876101,0.0001497,2]
[421781939,1778148735000,-500.0,0.00014973,2]
[421781941,1778148735000,-500.0,0.00014999,2]
[421781938,1778148735000,-500.0,0.00014973,2]
[421781940,1778148735000,-500.0,0.00014999,2]
[421781945,1778148735000,-676.05694954,0.00015,2]
[421781925,1778148735000,-177.12,0.00014507,2]
[421781942,1778148735000,-128028.48059439,0.00015,2]
[421781956,1778148735000,-174.962686,0.00015,2]
[421781943,1778148735000,-2502.93493034,0.00015,14]
[421781948,1778148735000,-151.0,0.00015,2]
[421781953,1778148735000,-174.962686,0.00015,2]
[421781950,1778148735000,-838.597652,0.00015,2]
[421781952,1778148735000,-838.597652,0.00015,2]
[421781954,1778148735000,-174.962686,0.00015,2]
[421781951,1778148735000,-838.597652,0.00015,2]
[421781946,1778148735000,-16883.40137617,0.00015,2]
[421781947,1778148735000,-45396.78434996,0.00015,2]
[421781944,1778148735000,-670734.33109903,0.00015,2]
[421781949,1778148735000,-838.597652,0.00015,2]
[421782012,1778148736000,-272.62944185,0.00016424,2]
[421782011,1778148736000,-262.90206542,0.00016424,2]
[421782006,1778148736000,-1993.93719284,0.00016183,2]
[421782017,1778148736000,-499.9643189,0.00016438,2]
[421782013,1778148736000,-282.71673119,0.00016424,2]
[421782008,1778148736000,-235.75327194,0.00016424,2]
[421782014,1778148736000,-293.17725025,0.00016424,2]
[421782016,1778148736000,-500.0,0.00016438,2]
[421782015,1778148736000,-389.62333817,0.00016424,2]
[421782021,1778148736000,-151.0,0.00016438,2]
[421782030,1778148736000,-226.17234,0.00016438,2]
[421782031,1778148736000,-226.17234,0.00016438,2]
[421782019,1778148736000,-151.0,0.00016438,2]
[421782023,1778148736000,-151.0,0.00016438,2]
[421782024,1778148736000,-151.0,0.00016438,2]
[421782022,1778148736000,-151.0,0.00016438,2]
[421782025,1778148736000,-151.0,0.00016438,2]
[421782009,1778148736000,-244.476143,0.00016424,2]
[421782020,1778148736000,-151.0,0.00016438,2]
[421782010,1778148736000,-253.52176029,0.00016424,2]
[421781989,1778148736000,-500.0,0.00015521,2]
[421782002,1778148736000,-156.017,0.00015913,2]
[421782028,1778148736000,-151.0,0.00016438,2]
[421781993,1778148736000,-168.63,0.00015599,2]
[421781992,1778148736000,-500.0,0.00015521,2]
[421781991,1778148736000,-512.27665207,0.00015521,2]
[421781990,1778148736000,-500.0,0.00015521,2]
[421781988,1778148736000,-506.89105004,0.00015521,2]
[421781987,1778148736000,-500.0,0.00015397,2]
[421781994,1778148736000,-686.37,0.00015644,2]
[421782007,1778148736000,-155.900858,0.00016223,2]
[421781996,1778148736000,-150.0,0.00015773,2]
[421781998,1778148736000,-200.0,0.00015913,2]
[421782000,1778148736000,-275.0,0.00015913,2]
[421781995,1778148736000,-3537.0,0.00015773,2]
[421781999,1778148736000,-150.0,0.00015913,2]
[421782001,1778148736000,-150.0,0.00015913,2]
[421782003,1778148736000,-150.0,0.00015913,2]
[421782004,1778148736000,-150.0,0.00015913,2]
[421782005,1778148736000,-300.0,0.00016,2]
[421781997,1778148736000,-1267.0,0.00015773,2]
[421782027,1778148736000,-151.0,0.00016438,2]
[421782018,1778148736000,-151.0,0.00016438,2]
[421782026,1778148736000,-151.0,0.00016438,2]
[421782050,1778148736000,-1222.944497,0.00016438,2]
[421782057,1778148736000,-1222.944497,0.00016438,2]
[421782052,1778148736000,-300.0,0.00016438,3]
[421782054,1778148736000,-1222.944497,0.00016438,2]
[421782069,1778148736000,-189.20905721,0.00017173,2]
[421782059,1778148736000,-269.46,0.00016487,2]
[421782070,1778148736000,-500.0,0.00017173,2]
[421782058,1778148736000,-1222.944497,0.00016438,2]
[421782060,1778148736000,-2000.0,0.00016778,2]
[421782064,1778148736000,-500.0,0.00016973,2]
[421782062,1778148736000,-1509.798225,0.00016856,2]
[421782065,1778148736000,-500.0,0.00016973,2]
[421782066,1778148736000,-502.31194961,0.00016973,2]
[421782068,1778148736000,-164.0,0.00017148,2]
[421782061,1778148736000,-784.069169,0.00016856,2]
[421782067,1778148736000,-1000.0,0.00016986,2]
[421782071,1778148736000,-3277.0262354,0.000172,2]
[421782073,1778148736000,-4046.9488924,0.000172,2]
[421782029,1778148736000,-151.0,0.00016438,2]
[421782049,1778148736000,-300.0,0.00016438,3]
[421782056,1778148736000,-1222.944497,0.00016438,2]
[421782063,1778148736000,-569.588588,0.00016856,2]
[421782055,1778148736000,-1222.944497,0.00016438,2]
[421782072,1778148736000,-80354.11816879,0.000172,2]
[421782043,1778148736000,-1222.944497,0.00016438,2]
[421782036,1778148736000,-226.17234,0.00016438,2]
[421782032,1778148736000,-226.17234,0.00016438,2]
[421782044,1778148736000,-1222.944497,0.00016438,2]
[421782037,1778148736000,-226.17234,0.00016438,2]
[421782034,1778148736000,-226.17234,0.00016438,2]
[421782035,1778148736000,-226.17234,0.00016438,2]
[421782041,1778148736000,-226.17234,0.00016438,2]
[421782038,1778148736000,-226.17234,0.00016438,2]
[421782039,1778148736000,-226.17234,0.00016438,2]
[421782042,1778148736000,-1222.944497,0.00016438,2]
[421782040,1778148736000,-226.17234,0.00016438,2]
[421782045,1778148736000,-300.0,0.00016438,3]
[421782047,1778148736000,-300.0,0.00016438,3]
[421782048,1778148736000,-1222.944497,0.00016438,2]
[421782046,1778148736000,-1222.944497,0.00016438,2]
[421782053,1778148736000,-1222.944497,0.00016438,2]
[421782051,1778148736000,-300.0,0.00016438,3]
[421782033,1778148736000,-226.17234,0.00016438,2]
[421782075,1778148737000,-150.0,0.00010647,2]
[421782074,1778148737000,-19000000.0,0.00042346,30]
[421782076,1778148738000,2008.888137,7.945e-05,2]
[421782078,1778148738000,-146.87862932,0.00011997,2]
[421782080,1778148738000,-150.0,0.00010699,2]
[421782079,1778148738000,-150.0,0.00011997,2]
[421782077,1778148738000,-3.12137068,0.00010647,2]
[421782082,1778148739000,-150.0,0.00010699,2]
[421782081,1778148739000,-150.0,0.00010699,2]
[421782085,1778148748000,756.93,0.00010551,2]
[421782084,1778148748000,756.93,0.00010049,2]
[421782083,1778148748000,756.93,9.546e-05,2]
[421782086,1778148750000,152.0,0.00012001,7]
[421782087,1778148754000,285.205783,0.00026312,120]
[421782088,1778148761000,464.47803,0.000245,120]
[421782089,1778148761000,332.372736,0.000245,120]
[421782090,1778148792000,166.186368,0.000245,120]
[421782094,1778148881000,-150.0,0.00010698,2]
[421782098,1778148893000,10000.01,0.000106,2]
[421782099,1778148893000,3139.5284,0.000106,2]
[421782097,1778148893000,10000.01,0.000106,2]
[421782096,1778148893000,10000.01,0.000106,2]
[421782101,1778148939000,-534.0,0.00010699,2]
[421782104,1778148939000,-11.661,0.00011054,2]
[421782105,1778148939000,-534.0,0.00011054,2]
[421782102,1778148939000,-341.47,0.00010699,2]
[421782103,1778148939000,-180.869,0.00010699,2]
[421782106,1778148940000,-211.269,0.00011054,2]
[421782107,1778148940000,-322.731,0.00011556,2]
[421782110,1778148941000,4500.0,0.00012,3]
[421782109,1778148941000,-99.801,0.00011768,2]
[421782108,1778148941000,-434.199,0.00011556,2]
[421782111,1778148963000,232.239015,0.00023633,120]
[421782112,1778148966000,4500.0,0.00012,3]
[421782114,1778149023000,500.0,0.00010598,2]
[421782117,1778149193000,7512.04616404,0.00012,3]
[421782126,1778149610000,158.51,6.496e-05,2]
[421782127,1778149611000,158.51,7.087e-05,2]
[421782128,1778149611000,158.51,7.677e-05,2]
[421782131,1778149611000,158.51,9.449e-05,2]
[421782130,1778149611000,158.51,8.858e-05,2]
[421782129,1778149611000,158.51,8.268e-05,2]
[421782133,1778149612000,158.51,0.0001063,2]
[421782132,1778149612000,158.51,0.00010039,2]
[421782540,1778149916000,-756.93,0.00012058,2]
[421782538,1778149916000,-158.51,0.00011811,2]
[421782537,1778149916000,-158.51,0.00011221,2]
[421782539,1778149916000,-500.0,0.00011999,2]
[421782542,1778149916000,-756.93,0.00012561,2]
[421782543,1778149916000,-167.42,0.00012663,2]
[421782544,1778149916000,-387.06715049,0.00012915,2]
[421782545,1778149916000,-3442.38,0.00012958,2]
[421782541,1778149916000,-158.51,0.00012402,2]
[421782567,1778149917000,-756.93,0.00014068,2]
[421782563,1778149917000,-217.06,0.00013526,2]
[421782564,1778149917000,-756.93,0.00013566,2]
[421782568,1778149917000,-1499.17,0.00014115,2]
[421782569,1778149917000,-1499.17,0.00014452,2]
[421782571,1778149917000,-1400.0,0.000146,5]
[421782570,1778149917000,-756.93,0.00014571,2]
[421782577,1778149917000,-500.0,0.00014698,2]
[421782574,1778149917000,-500.0,0.00014698,2]
[421782575,1778149917000,-500.0,0.00014698,2]
[421782576,1778149917000,-500.0,0.00014698,2]
[421782579,1778149917000,-504.83208442,0.00014698,2]
[421782578,1778149917000,-502.17716493,0.00014698,2]
[421782573,1778149917000,-500.0,0.00014698,2]
[421782572,1778149917000,-500.0,0.00014698,2]
[421782565,1778149917000,-200.0,0.00013699,2]
[421782550,1778149917000,-850.4923667,0.00012958,2]
[421782561,1778149917000,-166.43,0.00013371,2]
[421782580,1778149917000,-2800.0,0.000147,5]
[421782547,1778149917000,-3364.89259267,0.00012958,2]
[421782546,1778149917000,-666.6947665,0.00012958,2]
[421782548,1778149917000,-4609.91027413,0.00012958,2]
[421782555,1778149917000,-165049.53,0.00013023,2]
[421782552,1778149917000,-158.51,0.00012992,2]
[421782556,1778149917000,-756.93,0.00013063,2]
[421782553,1778149917000,-2067.48348878,0.00013,2]
[421782549,1778149917000,-508.0,0.00012958,2]
[421782554,1778149917000,-7309.56651122,0.00013,2]
[421782558,1778149917000,-400.199,0.00013199,2]
[421782559,1778149917000,-2000.0,0.00013267,2]
[421782560,1778149917000,-436.61,0.00013356,2]
[421782557,1778149917000,-161.7,0.00013187,2]
[421782562,1778149917000,-1499.17,0.00013443,2]
[421782566,1778149917000,-1499.17,0.00013779,2]
[421782582,1778149917000,-2205.0632,0.00014773,2]
[421782551,1778149917000,-155.9,0.00012958,2]
[421782583,1778149917000,-1499.17,0.00014788,2]
[421782598,1778149917000,-500.0,0.00014972,2]
[421782604,1778149917000,-168.5908248,0.00014972,2]
[421782606,1778149917000,-2078.0,0.00014973,5]
[421782605,1778149917000,-2101.0,0.00014973,5]
[421782607,1778149917000,-263.50783151,0.00014973,2]
[421782617,1778149917000,-50164.17173935,0.00014973,2]
[421782608,1778149917000,-1207.76532497,0.00014973,2]
[421782610,1778149917000,-1922864.20630592,0.00014973,2]
[421782612,1778149917000,-26544.36449395,0.00014973,2]
[421782611,1778149917000,-2495.98620282,0.00014973,2]
[421782613,1778149917000,-531.73649619,0.00014973,2]
[421782609,1778149917000,-150.0,0.00014973,2]
[421782614,1778149917000,-32988.85991668,0.00014973,2]
[421782616,1778149917000,-806.73,0.00014973,2]
[421782581,1778149917000,-281.28,0.0001474,14]
[421782600,1778149917000,-500.0,0.00014972,2]
[421782599,1778149917000,-500.0,0.00014972,2]
[421782615,1778149917000,-461.97552,0.00014973,2]
[421782603,1778149917000,-500.0,0.00014972,2]
[421782584,1778149917000,-4300.0,0.000148,5]
[421782602,1778149917000,-500.0,0.00014972,2]
[421782586,1778149917000,-10866.58626036,0.00014825,2]
[421782585,1778149917000,-2500.0,0.00014825,2]
[421782590,1778149917000,-153.89794171,0.000149,2]
[421782588,1778149917000,-5642.77808667,0.00014873,2]
[421782587,1778149917000,-5000.0,0.00014873,2]
[421782589,1778149917000,-351.56981582,0.000149,2]
[421782592,1778149917000,-5700.0,0.000149,5]
[421782593,1778149917000,-1520.24099842,0.000149,2]
[421782594,1778149917000,-233.54808641,0.00014922,2]
[421782595,1778149917000,-82738.84046429,0.00014925,2]
[421782596,1778149917000,-2000.0,0.00014925,2]
[421782601,1778149917000,-351.15086072,0.00014972,2]
[421782597,1778149917000,-500.0,0.00014972,2]
[421782591,1778149917000,-5177.27693709,0.000149,2]
[421782637,1778149918000,-150.0,0.00015814,2]
[421782638,1778149918000,-150.0,0.00015814,2]
[421782636,1778149918000,-150.0,0.00015814,2]
[421782639,1778149918000,-150.0,0.00015814,2]
[421782641,1778149918000,-5000.0,0.00016,2]
[421782643,1778149918000,-756.93,0.00016078,2]
[421782642,1778149918000,-150.0,0.00016027,2]
[421782644,1778149918000,-150.0,0.00016119,2]
[421782647,1778149918000,-150.0,0.00016241,2]
[421782645,1778149918000,-150.0,0.00016241,2]
[421782646,1778149918000,-150.0,0.00016241,2]
[421782633,1778149918000,-756.93,0.00015576,2]
[421782649,1778149918000,-150.0,0.00016241,2]
[421782640,1778149918000,-150.0,0.00015875,2]
[421782634,1778149918000,-150.0,0.000156,2]
[421782626,1778149918000,-250.23673418,0.00015386,2]
[421782630,1778149918000,-150.59647612,0.00015386,2]
[421782631,1778149918000,-150.0,0.00015386,2]
[421782632,1778149918000,-150.0,0.00015386,2]
[421782628,1778149918000,-150.00000001,0.00015386,2]
[421782629,1778149918000,-150.0,0.00015386,2]
[421782624,1778149918000,-150.0,0.00015386,2]
[421782625,1778149918000,-150.0,0.00015386,2]
[421782623,1778149918000,-152.91310528,0.00015386,2]
[421782621,1778149918000,-150.0,0.00015386,2]
[421782622,1778149918000,-150.0,0.00015386,2]
[421782620,1778149918000,-756.93,0.00015073,2]
[421782618,1778149918000,-356399.01742509,0.00014973,2]
[421782619,1778149918000,-5000.0,0.00015,2]
[421782648,1778149918000,-150.0,0.00016241,2]
[421782635,1778149918000,-150.0,0.00015631,2]
[421782650,1778149918000,-1222.0,0.00016303,2]
[421782627,1778149918000,-150.00000001,0.00015386,2]
[421782653,1778149918000,-10866.58626036,0.000165,2]
[421782684,1778149918000,-4036.84974291,0.000171,2]
[421782683,1778149918000,-290.05,0.000171,2]
[421782682,1778149918000,-376.19154539,0.000171,2]
[421782680,1778149918000,-273919.44290206,0.000171,2]
[421782678,1778149918000,-275.63605627,0.00014963,2]
[421782679,1778149918000,-1300.11389612,0.000171,2]
[421782676,1778149918000,-280.05595068,0.000171,2]
[421782677,1778149918000,-40330.0,0.000171,2]
[421782675,1778149918000,-343884.9819171,0.000171,2]
[421782674,1778149918000,-150.0,0.00017096,2]
[421782672,1778149918000,-150.0,0.00017096,2]
[421782673,1778149918000,-174.19344909,0.00017096,2]
[421782671,1778149918000,-151.87006581,0.00017096,2]
[421782670,1778149918000,-158.45897905,0.00017096,2]
[421782668,1778149918000,-150.0,0.00017096,2]
[421782681,1778149918000,-6567.463379,0.000171,2]
[421782666,1778149918000,-246.25959459,0.00017073,2]
[421782669,1778149918000,-150.0,0.00017096,2]
[421782655,1778149918000,-2000.0,0.00016583,2]
[421782652,1778149918000,-150.0,0.00016455,2]
[421782656,1778149918000,-150.0,0.00016607,2]
[421782654,1778149918000,-756.93,0.0001658,2]
[421782658,1778149918000,-150.0,0.00016668,2]
[421782657,1778149918000,-150.0,0.00016668,2]
[421782651,1778149918000,-150.0,0.00016363,2]
[421782660,1778149918000,-150.0,0.00016668,2]
[421782661,1778149918000,-166.186369,0.00016758,2]
[421782659,1778149918000,-150.0,0.00016668,2]
[421782662,1778149918000,-150.0,0.00016852,2]
[421782663,1778149918000,-150.0,0.00016882,2]
[421782665,1778149918000,-5000.0,0.00017,2]
[421782664,1778149918000,-7200.0,0.000169,6]
[421782667,1778149918000,-756.93,0.00017083,2]
[421782686,1778149919000,152.0,0.00012001,7]
[421782685,1778149919000,152.0,0.00012001,7]
[421782687,1778150032000,-5000.0,0.00011,2]
[421782689,1778150417000,165.18,7.659e-05,2]
[421782692,1778150417000,165.18,0.00011488,2]
[421782691,1778150417000,165.18,0.00010212,2]
[421782690,1778150417000,165.18,8.935e-05,2]
[421782694,1778150759000,152.0,0.00012001,7]
[421782695,1778150814000,1243.0,0.0003013,120]
[421782704,1778151032000,-258.88681493,0.00013672,2]
[421782706,1778151032000,-166.66,0.00013699,2]
[421782702,1778151032000,-165.18,0.00012764,2]
[421782707,1778151032000,-198.47998691,0.00014,2]
[421782714,1778151032000,-2500.0,0.00014041,2]
[421782708,1778151032000,-51.52001309,0.00014,2]
[421782709,1778151032000,-408.53118979,0.0001404,2]
[421782715,1778151032000,-2500.0,0.00014041,2]
[421782711,1778151032000,-165.18,0.00014041,2]
[421782710,1778151032000,-791.46881021,0.0001404,2]
[421782712,1778151032000,-300.0,0.00014041,2]
[421782713,1778151032000,-435.07921155,0.00014041,2]
[421782703,1778151032000,-250.0,0.00013016,2]
[421782705,1778151032000,-15.54183405,0.00013672,2]
[421782719,1778151032000,-315.93919438,0.00014041,2]
[421782723,1778151032000,-2500.0,0.00014041,2]
[421782717,1778151032000,-2184.06080562,0.00014041,2]
[421782734,1778151032000,-2447.86120998,0.00014257,2]
[421782733,1778151032000,-1850.0,0.00014257,2]
[421782732,1778151032000,-415.78432906,0.00014257,2]
[421782730,1778151032000,-604.22503791,0.00014257,2]
[421782726,1778151032000,-166.84,0.00014151,2]
[421782731,1778151032000,-501.55199785,0.00014257,2]
[421782729,1778151032000,-820.40046954,0.00014257,2]
[421782725,1778151032000,-250.0,0.00014041,2]
[421782727,1778151032000,-124.40581619,0.00014257,2]
[421782724,1778151032000,-250.0,0.00014041,2]
[421782720,1778151032000,-2457.42061619,0.00014041,2]
[421782722,1778151032000,-42.57938381,0.00014041,2]
[421782728,1778151032000,-196.89418381,0.00014257,2]
[421782769,1778151038000,-415.49134927,0.00015115,2]
[421782761,1778151038000,-500.0,0.00015115,2]
[421782762,1778151038000,-151.0,0.00015115,2]
[421782763,1778151038000,-500.0,0.00015115,2]
[421782764,1778151038000,-500.0,0.00015115,2]
[421782765,1778151038000,-151.0,0.00015115,2]
[421782767,1778151038000,-151.0,0.00015115,2]
[421782768,1778151038000,-274.37122365,0.00015115,2]
[421782775,1778151038000,-151.0,0.00015115,2]
[421782766,1778151038000,-500.0,0.00015115,2]
[421782774,1778151038000,-151.0,0.00015115,2]
[421782773,1778151038000,-151.0,0.00015115,2]
[421782772,1778151038000,-151.0,0.00015115,2]
[421782771,1778151038000,-151.0,0.00015115,2]
[421782758,1778151038000,-151.0,0.00015115,2]
[421782777,1778151038000,-151.0,0.00015115,2]
[421782776,1778151038000,-151.0,0.00015115,2]
[421782778,1778151038000,-151.0,0.00015115,2]
[421782770,1778151038000,-151.0,0.00015115,2]
[421782756,1778151038000,-151.0,0.00015115,2]
[421782751,1778151038000,-800.0,0.00015004,2]
[421782759,1778151038000,-500.0,0.00015115,2]
[421782781,1778151038000,-2080.17592889,0.00015115,2]
[421782738,1778151038000,-3360.16695566,0.00014257,2]
[421782740,1778151038000,-4144.1699421,0.00014257,2]
[421782739,1778151038000,-156.30762858,0.00014257,2]
[421782742,1778151038000,-1227.64417524,0.00014257,2]
[421782741,1778151038000,-1478.63014659,0.00014257,2]
[421782743,1778151038000,-11876.05312434,0.00014257,2]
[421782745,1778151038000,-999.99,0.00014257,2]
[421782747,1778151038000,-274.54,0.00014308,2]
[421782746,1778151038000,-299.99,0.00014257,2]
[421782748,1778151038000,-172.0,0.000145,2]
[421782749,1778151038000,-800.0,0.00014638,2]
[421782744,1778151038000,-5439.59498315,0.00014257,2]
[421782750,1778151038000,-5737.9754,0.00014825,2]
[421782752,1778151038000,-2500.0,0.00015024,2]
[421782754,1778151038000,-41394.1698014,0.00015072,2]
[421782753,1778151038000,-4576.6195936,0.00015072,2]
[421782757,1778151038000,-500.0,0.00015115,2]
[421782755,1778151038000,-200.0,0.00015115,2]
[421782760,1778151038000,-151.0,0.00015115,2]
[421782789,1778151038000,-326.02342621,0.00015117,2]
[421782827,1778151038000,-746.96301585,0.00015117,2]
[421782780,1778151038000,-151.0,0.00015115,2]
[421782841,1778151038000,-746.96301585,0.00015117,2]
[421782831,1778151038000,-746.96301585,0.00015117,2]
[421782843,1778151038000,-746.96301585,0.00015117,2]
[421782833,1778151038000,-746.96301585,0.00015117,2]
[421782838,1778151038000,-746.96301585,0.00015117,2]
[421782829,1778151038000,-746.96301585,0.00015117,2]
[421782836,1778151038000,-746.96301585,0.00015117,2]